[Event "*** Titled Tuesday Blitz"]
[Site "Chess.com"]
[Date "2020.01.07"]
[Round "3"]
[White "CM_Perligero"]
[Black "nurmiTV"]
[Result "0-1"]
[WhiteElo "2090"]
[BlackElo "2538"]
[TimeControl "180+2"]
[EndTime "13:42:00 PST"]
[Termination "nurmiTV won on time"]

1. e4 {[%clk 0:03:01.9]} 1... c5 {[%clk 0:02:59.8]} 2. Nc3 {[%clk 0:03:00.2]}
2... a6 {[%clk 0:03:00.1]} 3. g3 {[%clk 0:03:01.3]} 3... b5 {[%clk 0:03:00.5]}
4. Bg2 {[%clk 0:03:01.5]} 4... Bb7 {[%clk 0:03:01.1]} 5. d3 {[%clk 0:03:01.4]}
5... e6 {[%clk 0:02:59.5]} 6. Nf3 {[%clk 0:03:00]} 6... Nc6 {[%clk 0:02:56.2]}
7. O-O {[%clk 0:02:58.7]} 7... Nge7 {[%clk 0:02:37.5]} 8. Be3 {[%clk 0:02:50.4]}
8... d6 {[%clk 0:02:35.2]} 9. h3 {[%clk 0:02:45.6]} 9... g6 {[%clk 0:02:34.8]}
10. Nh2 {[%clk 0:02:45.2]} 10... Bg7 {[%clk 0:02:34.3]} 11. Qd2 {[%clk
0:02:39.7]} 11... h5 {[%clk 0:02:25.7]} 12. f4 {[%clk 0:02:37.2]} 12... Nd4
{[%clk 0:02:23.9]} 13. Nd1 {[%clk 0:02:28.1]} 13... f5 {[%clk 0:01:57]} 14. c3
{[%clk 0:02:24.1]} 14... Ndc6 {[%clk 0:01:56.6]} 15. Nf2 {[%clk 0:02:18.3]}
15... Qd7 {[%clk 0:01:50.5]} 16. Nf3 {[%clk 0:02:17.7]} 16... O-O-O {[%clk
0:01:38]} 17. Ng5 {[%clk 0:02:17.4]} 17... Rhf8 {[%clk 0:01:28.9]} 18. a4 {[%clk
0:02:14.7]} 18... b4 {[%clk 0:01:26]} 19. cxb4 {[%clk 0:02:11.9]} 19... Nxb4
{[%clk 0:01:25.8]} 20. Rfc1 {[%clk 0:02:11.9]} 20... Kb8 {[%clk 0:01:23.2]} 21.
d4 {[%clk 0:02:01.6]} 21... cxd4 {[%clk 0:00:50.8]} 22. Bxd4 {[%clk 0:01:53.7]}
22... Bxd4 {[%clk 0:00:49.4]} 23. Qxd4 {[%clk 0:01:51.7]} 23... Nec6 {[%clk
0:00:49.9]} 24. Qb6 {[%clk 0:01:38.1]} 24... d5 {[%clk 0:00:37.3]} 25. e5 {[%clk
0:01:19.2]} 25... Rfe8 {[%clk 0:00:37.6]} 26. a5 {[%clk 0:01:15.9]} 26... Qc7
{[%clk 0:00:31.6]} 27. Qe3 {[%clk 0:01:14.2]} 27... Qe7 {[%clk 0:00:26.9]} 28.
Ra4 {[%clk 0:01:10.2]} 28... Na7 {[%clk 0:00:26.5]} 29. Qb3 {[%clk 0:01:04.8]}
29... Nbc6 {[%clk 0:00:26.5]} 30. Nd3 {[%clk 0:01:01.7]} 30... Ka8 {[%clk
0:00:24.3]} 31. Nc5 {[%clk 0:00:57.8]} 31... Rb8 {[%clk 0:00:25.8]} 32. Qd3
{[%clk 0:00:44.9]} 32... Bc8 {[%clk 0:00:21.5]} 33. Nxa6 {[%clk 0:00:37.7]}
33... Rxb2 {[%clk 0:00:21.8]} 34. Bf1 {[%clk 0:00:26.8]} 34... Qb7 {[%clk
0:00:21.8]} 35. Nc5 {[%clk 0:00:26.7]} 35... Qe7 {[%clk 0:00:17.7]} 36. a6
{[%clk 0:00:25.7]} 36... Rb5 {[%clk 0:00:13.3]} 37. Qc3 {[%clk 0:00:24.2]} 37...
Rb6 {[%clk 0:00:13.4]} 38. Raa1 {[%clk 0:00:21.8]} 38... Qc7 {[%clk 0:00:13.2]}
39. Na4 {[%clk 0:00:21.1]} 39... Rb8 {[%clk 0:00:10.8]} 40. Rab1 {[%clk
0:00:22]} 40... Bd7 {[%clk 0:00:10.5]} 41. Rb7 {[%clk 0:00:20.7]} 41... Rxb7
{[%clk 0:00:10.6]} 42. axb7+ {[%clk 0:00:21.9]} 42... Qxb7 {[%clk 0:00:12.5]}
43. Nc5 {[%clk 0:00:23.3]} 43... Qb6 {[%clk 0:00:14]} 44. Kh1 {[%clk 0:00:24]}
44... Bc8 {[%clk 0:00:15.2]} 45. Ra1 {[%clk 0:00:21.3]} 45... Qb4 {[%clk
0:00:14.6]} 46. Qc2 {[%clk 0:00:18.4]} 46... Re7 {[%clk 0:00:13.2]} 47. Nd3
{[%clk 0:00:17.1]} 47... Qb6 {[%clk 0:00:13.2]} 48. Rb1 {[%clk 0:00:16.1]} 48...
Qa5 {[%clk 0:00:12.6]} 49. Qb2 {[%clk 0:00:15.5]} 49... Rb7 {[%clk 0:00:12.8]}
50. Qc1 {[%clk 0:00:15.6]} 50... Qa2 {[%clk 0:00:12.5]} 51. Rxb7 {[%clk
0:00:15.8]} 51... Bxb7 {[%clk 0:00:14.4]} 52. Nxe6 {[%clk 0:00:15.8]} 52... d4
{[%clk 0:00:13.6]} 53. Bg2 {[%clk 0:00:16.3]} 53... Qxe6 {[%clk 0:00:13.1]} 54.
Nc5 {[%clk 0:00:16.6]} 54... Qe7 {[%clk 0:00:13.5]} 55. Nxb7 {[%clk 0:00:13.6]}
55... Qxb7 {[%clk 0:00:15.4]} 56. Qc5 {[%clk 0:00:13]} 56... Kb8 {[%clk
0:00:15.3]} 57. Qf8+ {[%clk 0:00:13.2]} 57... Qc8 {[%clk 0:00:16.1]} 58. Qd6+
{[%clk 0:00:13.4]} 58... Qc7 {[%clk 0:00:17.6]} 59. Qf8+ {[%clk 0:00:13.1]}
59... Nc8 {[%clk 0:00:17.7]} 60. e6 {[%clk 0:00:13.8]} 60... Ne7 {[%clk
0:00:17.5]} 61. Qe8 {[%clk 0:00:14.2]} 61... Qb6 {[%clk 0:00:17.1]} 62. Qd7
{[%clk 0:00:14.1]} 62... Qc7 {[%clk 0:00:13.7]} 63. Qb5+ {[%clk 0:00:14.5]}
63... Nb6 {[%clk 0:00:15.1]} 64. Qe8+ {[%clk 0:00:14.1]} 64... Nec8 {[%clk
0:00:16.5]} 65. Kh2 {[%clk 0:00:13.6]} 65... d3 {[%clk 0:00:16.1]} 66. Qb5
{[%clk 0:00:08]} 66... Qd6 {[%clk 0:00:15.1]} 67. Qa6 {[%clk 0:00:06.4]} 67...
Kc7 {[%clk 0:00:15.3]} 68. Qb7+ {[%clk 0:00:06.4]} 68... Kd8 {[%clk 0:00:16.8]}
69. Qf7 {[%clk 0:00:06.5]} 69... Ne7 {[%clk 0:00:14]} 70. Qf8+ {[%clk
0:00:06.1]} 70... Kc7 {[%clk 0:00:15.5]} 71. Qe8 {[%clk 0:00:04.3]} 71... d2
{[%clk 0:00:15.8]} 0-1

[Event "*** Titled Tuesday Blitz"]
[Site "Chess.com"]
[Date "2020.01.07"]
[Round "3"]
[White "SHIVACalypso"]
[Black "Megagigahiper3345"]
[Result "0-1"]
[WhiteElo "2227"]
[BlackElo "2452"]
[TimeControl "180+2"]
[EndTime "13:42:49 PST"]
[Termination "Megagigahiper3345 won by resignation"]

1. Nf3 {[%clk 0:03:00.8]} 1... Nf6 {[%clk 0:02:25.9]} 2. c4 {[%clk 0:02:59.4]}
2... g6 {[%clk 0:02:23.5]} 3. g3 {[%clk 0:02:54.5]} 3... Bg7 {[%clk 0:02:24.6]}
4. Bg2 {[%clk 0:02:56.1]} 4... O-O {[%clk 0:02:26.1]} 5. O-O {[%clk 0:02:57.5]}
5... c5 {[%clk 0:02:26.6]} 6. Nc3 {[%clk 0:02:58.6]} 6... Nc6 {[%clk 0:02:27.3]}
7. d3 {[%clk 0:02:59.5]} 7... a6 {[%clk 0:02:24.2]} 8. a3 {[%clk 0:02:58.7]}
8... Rb8 {[%clk 0:02:24.8]} 9. Rb1 {[%clk 0:03:00.1]} 9... b5 {[%clk 0:02:25.8]}
10. cxb5 {[%clk 0:03:00.7]} 10... axb5 {[%clk 0:02:27.1]} 11. b4 {[%clk
0:03:02.4]} 11... cxb4 {[%clk 0:02:25.5]} 12. axb4 {[%clk 0:03:04.3]} 12... d5
{[%clk 0:02:20.1]} 13. Bf4 {[%clk 0:03:03.8]} 13... Rb7 {[%clk 0:02:16.2]} 14.
Ne5 {[%clk 0:03:03.1]} 14... Nxe5 {[%clk 0:01:50.1]} 15. Bxe5 {[%clk 0:03:05]}
15... e6 {[%clk 0:01:51]} 16. e4 {[%clk 0:02:57]} 16... d4 {[%clk 0:01:51.6]}
17. Ne2 {[%clk 0:02:57.4]} 17... Ng4 {[%clk 0:01:40.9]} 18. Bxg7 {[%clk
0:02:45.1]} 18... Kxg7 {[%clk 0:01:42.8]} 19. h3 {[%clk 0:02:46.6]} 19... Nf6
{[%clk 0:01:37.5]} 20. e5 {[%clk 0:02:45.3]} 20... Nd5 {[%clk 0:01:37.7]} 21.
Nxd4 {[%clk 0:02:46.8]} 21... Nc3 {[%clk 0:01:36.4]} 22. Nc6 {[%clk 0:02:23.3]}
22... Qb6 {[%clk 0:01:24.4]} 23. Qc2 {[%clk 0:02:12.9]} 23... Nxb1 {[%clk
0:01:24.1]} 24. Rxb1 {[%clk 0:02:14.8]} 24... Rc7 {[%clk 0:01:24.8]} 25. Qc5
{[%clk 0:01:44.6]} 25... Qxc5 {[%clk 0:00:50.4]} 26. bxc5 {[%clk 0:01:46.5]}
26... Bb7 {[%clk 0:00:51.5]} 27. Nd4 {[%clk 0:01:45.7]} 27... Bxg2 {[%clk
0:00:52.4]} 28. Kxg2 {[%clk 0:01:47.6]} 28... Rxc5 {[%clk 0:00:53.7]} 29. Rxb5
{[%clk 0:01:48.1]} 29... Rxb5 {[%clk 0:00:54.3]} 30. Nxb5 {[%clk 0:01:50]} 30...
Rd8 {[%clk 0:00:55.8]} 31. Nd6 {[%clk 0:01:50.8]} 31... Ra8 {[%clk 0:00:56.5]}
32. Kf3 {[%clk 0:01:50.7]} 32... Kf8 {[%clk 0:00:54.5]} 33. Ke4 {[%clk
0:01:47.2]} 33... Ke7 {[%clk 0:00:55.2]} 34. h4 {[%clk 0:01:46.9]} 34... Ra2
{[%clk 0:00:54.4]} 35. Ke3 {[%clk 0:01:46.7]} 35... f6 {[%clk 0:00:53.7]} 36.
Nc4 {[%clk 0:01:48.1]} 36... Ra1 {[%clk 0:00:52.1]} 37. exf6+ {[%clk 0:01:46.6]}
37... Kxf6 {[%clk 0:00:54]} 38. Kf3 {[%clk 0:01:46.7]} 38... Rd1 {[%clk
0:00:53.6]} 39. Ke2 {[%clk 0:01:46.8]} 39... Rh1 {[%clk 0:00:54.9]} 40. Kf3
{[%clk 0:01:41.1]} 40... Rd1 {[%clk 0:00:38.4]} 41. Ke2 {[%clk 0:01:40.5]} 41...
Rb1 {[%clk 0:00:39.4]} 42. Kf3 {[%clk 0:01:40.4]} 42... Rb8 {[%clk 0:00:41.3]}
43. Ke4 {[%clk 0:01:39.7]} 43... Rd8 {[%clk 0:00:42.7]} 44. Ne5 {[%clk
0:01:38.6]} 44... Ra8 {[%clk 0:00:43.8]} 45. Ng4+ {[%clk 0:01:39.2]} 45... Ke7
{[%clk 0:00:43.6]} 46. Ne5 {[%clk 0:01:39.6]} 46... Ra4+ {[%clk 0:00:45.1]} 47.
Ke3 {[%clk 0:01:39.9]} 47... Ra1 {[%clk 0:00:46.7]} 48. Nc4 {[%clk 0:01:38]}
48... Re1+ {[%clk 0:00:46.9]} 49. Kf3 {[%clk 0:01:39]} 49... Kf6 {[%clk
0:00:47.3]} 50. Kf4 {[%clk 0:01:34.7]} 50... Ke7 {[%clk 0:00:45.7]} 51. Kf3
{[%clk 0:01:34.6]} 51... Kd7 {[%clk 0:00:46.1]} 52. Ne3 {[%clk 0:01:31.1]} 52...
Kc6 {[%clk 0:00:42.8]} 53. Ke4 {[%clk 0:01:31.8]} 53... Kd6 {[%clk 0:00:41]} 54.
d4 {[%clk 0:01:27.9]} 54... Rh1 {[%clk 0:00:40.6]} 55. Ng4 {[%clk 0:01:23.7]}
55... Re1+ {[%clk 0:00:39.7]} 56. Ne3 {[%clk 0:01:24.7]} 56... Rb1 {[%clk
0:00:39.8]} 57. Kf3 {[%clk 0:01:18.3]} 57... Rb4 {[%clk 0:00:32.5]} 58. Ke4
{[%clk 0:01:13.5]} 58... e5 {[%clk 0:00:19.1]} 59. Nc2 {[%clk 0:01:13.7]} 59...
Ra4 {[%clk 0:00:17.4]} 60. Kd3 {[%clk 0:01:14.1]} 60... Kd5 {[%clk 0:00:15.4]}
61. dxe5 {[%clk 0:01:13.9]} 61... Kxe5 {[%clk 0:00:16.7]} 62. Ke3 {[%clk
0:01:06.3]} 62... Rc4 {[%clk 0:00:16.3]} 63. Ne1 {[%clk 0:01:06.3]} 63... Rc3+
{[%clk 0:00:17.6]} 64. Nd3+ {[%clk 0:01:06.5]} 64... Kf5 {[%clk 0:00:18.9]} 65.
Kd4 {[%clk 0:01:05.6]} 65... Rc8 {[%clk 0:00:20.1]} 66. Ke3 {[%clk 0:01:06.3]}
66... Rd8 {[%clk 0:00:21.2]} 67. Nf4 {[%clk 0:01:06.5]} 67... Kg4 {[%clk
0:00:22.4]} 68. Nd3 {[%clk 0:00:15]} 68... Re8+ {[%clk 0:00:18.4]} 69. Kd2
{[%clk 0:00:13.8]} 69... Kf3 {[%clk 0:00:17.1]} 70. Kc3 {[%clk 0:00:13]} 70...
Rc8+ {[%clk 0:00:16.5]} 71. Kd2 {[%clk 0:00:12.5]} 71... Rd8 {[%clk 0:00:17.6]}
72. Kc3 {[%clk 0:00:13.2]} 72... Rxd3+ {[%clk 0:00:19]} 73. Kxd3 {[%clk
0:00:14.1]} 73... Kxf2 {[%clk 0:00:20.9]} 74. g4 {[%clk 0:00:07.4]} 74... Kf3
{[%clk 0:00:21.3]} 75. h5 {[%clk 0:00:06]} 75... g5 {[%clk 0:00:21.8]} 76. h6
{[%clk 0:00:04.5]} 76... Kf4 {[%clk 0:00:22.6]} 77. Ke2 {[%clk 0:00:05.1]} 77...
Kxg4 {[%clk 0:00:23.9]} 78. Kf2 {[%clk 0:00:07]} 78... Kh5 {[%clk 0:00:25.5]}
79. Kg3 {[%clk 0:00:08.6]} 79... Kxh6 {[%clk 0:00:27.4]} 80. Kg4 {[%clk
0:00:10.4]} 80... Kg6 {[%clk 0:00:29.3]} 81. Kh3 {[%clk 0:00:11.3]} 81... h5
{[%clk 0:00:31.2]} 82. Kg3 {[%clk 0:00:13.2]} 82... Kf5 {[%clk 0:00:32.7]} 83.
Kh3 {[%clk 0:00:15.1]} 83... g4+ {[%clk 0:00:34.3]} 84. Kg3 {[%clk 0:00:17]}
84... Kg5 {[%clk 0:00:35.5]} 85. Kh2 {[%clk 0:00:17.7]} 85... h4 {[%clk
0:00:37.1]} 86. Kh1 {[%clk 0:00:19.6]} 86... Kf4 {[%clk 0:00:39]} 87. Kh2 {[%clk
0:00:20.6]} 87... g3+ {[%clk 0:00:40.4]} 88. Kh1 {[%clk 0:00:22.1]} 88... Kf3
{[%clk 0:00:42]} 89. Kg1 {[%clk 0:00:23.2]} 89... h3 {[%clk 0:00:43.2]} 90. Kh1
{[%clk 0:00:25.1]} 90... g2+ {[%clk 0:00:41.7]} 91. Kg1 {[%clk 0:00:25.8]} 91...
Ke2 {[%clk 0:00:43.2]} 92. Kh2 {[%clk 0:00:25]} 92... Kf2 {[%clk 0:00:45.1]} 0-1

[Event "*** Titled Tuesday Blitz"]
[Site "Chess.com"]
[Date "2020.01.07"]
[Round "3"]
[White "Ginzburg_Yakov"]
[Black "Arystanner"]
[Result "1-0"]
[WhiteElo "2570"]
[BlackElo "2730"]
[TimeControl "180+2"]
[EndTime "13:44:44 PST"]
[Termination "Ginzburg_Yakov won by resignation"]

1. e4 {[%clk 0:03:00]} 1... e5 {[%clk 0:03:00.7]} 2. Nf3 {[%clk 0:03:00.3]} 2...
Nc6 {[%clk 0:03:01.9]} 3. Bb5 {[%clk 0:03:00.8]} 3... a6 {[%clk 0:03:02.9]} 4.
Bxc6 {[%clk 0:03:01.9]} 4... dxc6 {[%clk 0:03:04.8]} 5. O-O {[%clk 0:03:03.2]}
5... Bg4 {[%clk 0:03:05.9]} 6. h3 {[%clk 0:03:03.9]} 6... Bh5 {[%clk 0:03:07.3]}
7. d3 {[%clk 0:02:48]} 7... f6 {[%clk 0:03:08.1]} 8. Be3 {[%clk 0:02:44.2]} 8...
Bd6 {[%clk 0:03:08.6]} 9. Nbd2 {[%clk 0:02:44.7]} 9... Ne7 {[%clk 0:03:09.2]}
10. c3 {[%clk 0:02:44.9]} 10... c5 {[%clk 0:03:10.3]} 11. Qa4+ {[%clk
0:02:34.1]} 11... Qd7 {[%clk 0:03:04.3]} 12. Qxd7+ {[%clk 0:02:31]} 12... Kxd7
{[%clk 0:03:06.2]} 13. d4 {[%clk 0:02:30.1]} 13... cxd4 {[%clk 0:03:05]} 14.
cxd4 {[%clk 0:02:30.9]} 14... exd4 {[%clk 0:03:03.8]} 15. Nxd4 {[%clk
0:02:28.3]} 15... c5 {[%clk 0:03:04.8]} 16. N4b3 {[%clk 0:02:27.9]} 16... b6
{[%clk 0:03:04.5]} 17. Nc4 {[%clk 0:02:20.7]} 17... Bc7 {[%clk 0:03:04.8]} 18.
g4 {[%clk 0:02:19.5]} 18... Bf7 {[%clk 0:03:04.2]} 19. Rfd1+ {[%clk 0:02:20.3]}
19... Kc6 {[%clk 0:03:05.1]} 20. Rac1 {[%clk 0:02:15.9]} 20... Rad8 {[%clk
0:03:03.4]} 21. Rxd8 {[%clk 0:01:33]} 21... Rxd8 {[%clk 0:03:02.9]} 22. Kf1
{[%clk 0:01:33.4]} 22... h5 {[%clk 0:02:48.6]} 23. Ke2 {[%clk 0:01:32.8]} 23...
hxg4 {[%clk 0:02:48.1]} 24. hxg4 {[%clk 0:01:33.6]} 24... Be6 {[%clk 0:02:48.8]}
25. f3 {[%clk 0:01:17.4]} 25... Ng6 {[%clk 0:02:46.8]} 26. Nca5+ {[%clk
0:00:55.4]} 26... bxa5 {[%clk 0:02:31.1]} 27. Nxc5 {[%clk 0:00:55.9]} 27... Bxa2
{[%clk 0:01:36.2]} 28. Nxa6+ {[%clk 0:00:55.6]} 28... Kb7 {[%clk 0:01:29.9]} 29.
Rxc7+ {[%clk 0:00:33.7]} 29... Kxa6 {[%clk 0:01:28.9]} 30. Rxg7 {[%clk
0:00:34.7]} 30... Ne5 {[%clk 0:01:29.2]} 31. g5 {[%clk 0:00:32.6]} 31... fxg5
{[%clk 0:01:20.2]} 32. Rxg5 {[%clk 0:00:32.6]} 32... Bc4+ {[%clk 0:01:18.5]} 33.
Kf2 {[%clk 0:00:33.9]} 33... Nd3+ {[%clk 0:01:19.9]} 34. Kg3 {[%clk 0:00:35.5]}
34... Nxb2 {[%clk 0:01:20.1]} 35. Rg6+ {[%clk 0:00:36.2]} 35... Kb5 {[%clk
0:00:49.5]} 36. Rb6+ {[%clk 0:00:37]} 36... Ka4 {[%clk 0:00:50.8]} 37. Rxb2
{[%clk 0:00:38.7]} 37... Bb3 {[%clk 0:00:52]} 38. Rd2 {[%clk 0:00:24.1]} 38...
Rg8+ {[%clk 0:00:49]} 39. Kf2 {[%clk 0:00:24.5]} 39... Kb4 {[%clk 0:00:49.7]}
40. Rd4+ {[%clk 0:00:21]} 40... Kc3 {[%clk 0:00:47.9]} 41. Rd7 {[%clk
0:00:18.5]} 41... a4 {[%clk 0:00:49.1]} 42. Bc5 {[%clk 0:00:19.1]} 42... Kb2
{[%clk 0:00:45.5]} 43. Ra7 {[%clk 0:00:19.7]} 43... Rc8 {[%clk 0:00:43]} 44. Be7
{[%clk 0:00:20.4]} 44... Kc2 {[%clk 0:00:30]} 45. Ke3 {[%clk 0:00:19.4]} 45...
Kd1 {[%clk 0:00:26.9]} 46. f4 {[%clk 0:00:19.2]} 46... Bc2 {[%clk 0:00:22.2]}
47. Bf6 {[%clk 0:00:13.9]} 47... Rg8 {[%clk 0:00:18]} 48. Kd4 {[%clk 0:00:11.1]}
48... Rg4 {[%clk 0:00:18.1]} 49. Bg5 {[%clk 0:00:12.2]} 49... Rg2 {[%clk
0:00:18.7]} 50. e5 {[%clk 0:00:13]} 50... Bb3 {[%clk 0:00:19.6]} 51. Ke4 {[%clk
0:00:12.2]} 51... Re2+ {[%clk 0:00:19.7]} 52. Kf5 {[%clk 0:00:13]} 52... Kc2
{[%clk 0:00:21.3]} 53. Be7 {[%clk 0:00:13.6]} 53... Kd3 {[%clk 0:00:20.4]} 54.
Bd6 {[%clk 0:00:15.2]} 54... Kc4 {[%clk 0:00:21.5]} 55. Rc7+ {[%clk 0:00:15.3]}
55... Kd5 {[%clk 0:00:20.5]} 56. Rc5+ {[%clk 0:00:16.7]} 56... Kd4 {[%clk
0:00:21.8]} 57. Ra5 {[%clk 0:00:18.4]} 57... Rh2 {[%clk 0:00:20.7]} 58. Kf6
{[%clk 0:00:17.1]} 58... Rh6+ {[%clk 0:00:21.1]} 59. Ke7 {[%clk 0:00:18.4]}
59... Rh5 {[%clk 0:00:21.6]} 60. Ra7 {[%clk 0:00:15.7]} 60... Rf5 {[%clk
0:00:21.3]} 61. e6 {[%clk 0:00:17]} 61... Rh5 {[%clk 0:00:18.1]} 62. Be5+ {[%clk
0:00:17.6]} 62... Ke4 {[%clk 0:00:18.6]} 63. Kf7 {[%clk 0:00:13.6]} 63... Rh7+
{[%clk 0:00:18.5]} 64. Bg7 {[%clk 0:00:14.6]} 64... Kxf4 {[%clk 0:00:19.1]} 65.
Kg6 {[%clk 0:00:13.9]} 65... Bc2+ {[%clk 0:00:20.3]} 66. Kf6 {[%clk 0:00:14.6]}
66... Rh5 {[%clk 0:00:20.5]} 67. e7 {[%clk 0:00:15.5]} 67... Rf5+ {[%clk
0:00:20.9]} 68. Ke6 {[%clk 0:00:16.9]} 68... Bb3+ {[%clk 0:00:22.3]} 69. Kd6
{[%clk 0:00:18.3]} 69... Bf7 {[%clk 0:00:23.5]} 70. Rxa4+ {[%clk 0:00:18.6]}
70... Kg5 {[%clk 0:00:24.9]} 71. Be5 {[%clk 0:00:16.9]} 71... Rf1 {[%clk
0:00:23.5]} 72. Kd7 {[%clk 0:00:16.5]} 72... Rd1+ {[%clk 0:00:24.1]} 73. Bd6
{[%clk 0:00:17.8]} 73... Kf6 {[%clk 0:00:24.6]} 74. Ra8 {[%clk 0:00:18.2]} 74...
Be6+ {[%clk 0:00:23.7]} 75. Kc7 {[%clk 0:00:19.4]} 75... Rc1+ {[%clk 0:00:24.6]}
76. Kd8 {[%clk 0:00:19.1]} 76... Bf7 {[%clk 0:00:24.9]} 77. e8=Q {[%clk
0:00:20.3]} 77... Bxe8 {[%clk 0:00:26.2]} 78. Kxe8 {[%clk 0:00:21.9]} 78... Ke6
{[%clk 0:00:27.3]} 79. Be7 {[%clk 0:00:23.3]} 79... Rh1 {[%clk 0:00:28]} 80.
Ra6+ {[%clk 0:00:24.3]} 80... Kd5 {[%clk 0:00:29.6]} 81. Kd7 {[%clk 0:00:25.4]}
81... Ke4 {[%clk 0:00:29.8]} 82. Ra5 {[%clk 0:00:26.3]} 82... Rf1 {[%clk
0:00:28.8]} 83. Ke6 {[%clk 0:00:27]} 83... Rh1 {[%clk 0:00:29.8]} 84. Ra4+
{[%clk 0:00:28.1]} 84... Kd3 {[%clk 0:00:30.9]} 85. Bf6 {[%clk 0:00:28.9]} 85...
Rh5 {[%clk 0:00:31]} 86. Be5 {[%clk 0:00:29.7]} 86... Ke3 {[%clk 0:00:32.2]} 87.
Kd5 {[%clk 0:00:30.6]} 87... Kf3 {[%clk 0:00:33.6]} 88. Ra3+ {[%clk 0:00:31.5]}
88... Kg4 {[%clk 0:00:33.9]} 89. Ke4 {[%clk 0:00:30.8]} 89... Rh3 {[%clk
0:00:34.7]} 90. Ra8 {[%clk 0:00:30.9]} 90... Rh7 {[%clk 0:00:33.5]} 91. Rg8+
{[%clk 0:00:30.9]} 91... Kh4 {[%clk 0:00:33.4]} 92. Rg1 {[%clk 0:00:30.8]} 92...
Rf7 {[%clk 0:00:31.7]} 93. Bf4 {[%clk 0:00:31.3]} 93... Rf8 {[%clk 0:00:31]} 94.
Kf3 {[%clk 0:00:30.2]} 94... Kh5 {[%clk 0:00:32.3]} 95. Rg5+ {[%clk 0:00:30.8]}
95... Kh4 {[%clk 0:00:33.7]} 96. Rg6 {[%clk 0:00:31.7]} 96... Rf5 {[%clk
0:00:33.5]} 97. Rc6 {[%clk 0:00:24.7]} 97... Rh5 {[%clk 0:00:26.7]} 98. Rc1
{[%clk 0:00:22.9]} 1-0